[Event "*** SCC Grand Prix: Titled Tuesday Blitz"]
[Site "Chess.com"]
[Date "2020.06.02"]
[Round "4"]
[White "Doukis"]
[Black "H3nriqueTV"]
[Result "1/2-1/2"]
[WhiteElo "2398"]
[BlackElo "2186"]
[TimeControl "180+1"]
[EndTime "10:40:19 PDT"]
[Termination "Game drawn by agreement"]

1. d4 {[%clk 0:03:00.9]} 1... d5 {[%clk 0:03:00]} 2. c4 {[%clk 0:02:59.1]} 2...
c6 {[%clk 0:02:59.7]} 3. cxd5 {[%clk 0:02:59.3]} 3... cxd5 {[%clk 0:02:59.3]} 4.
Bg5 {[%clk 0:02:59.9]} 4... Nc6 {[%clk 0:02:58]} 5. Nc3 {[%clk 0:02:59]} 5...
Nf6 {[%clk 0:02:58.4]} 6. Bxf6 {[%clk 0:02:58.5]} 6... exf6 {[%clk 0:02:58.6]}
7. e3 {[%clk 0:02:58.1]} 7... Bb4 {[%clk 0:02:56.9]} 8. Rc1 {[%clk 0:02:58.2]}
8... O-O {[%clk 0:02:56.6]} 9. Bd3 {[%clk 0:02:57.7]} 9... a6 {[%clk 0:02:52.2]}
10. Ne2 {[%clk 0:02:56.9]} 10... Bg4 {[%clk 0:02:50.7]} 11. O-O {[%clk
0:02:55.6]} 11... Re8 {[%clk 0:02:49.9]} 12. Qb3 {[%clk 0:02:51.8]} 12... Be6
{[%clk 0:02:43.4]} 13. Nf4 {[%clk 0:02:49.3]} 13... Bxc3 {[%clk 0:02:42.2]} 14.
Rxc3 {[%clk 0:02:42.9]} 14... Rb8 {[%clk 0:02:41.3]} 15. a3 {[%clk 0:02:30.8]}
15... Na5 {[%clk 0:02:38.5]} 16. Qc2 {[%clk 0:02:30.6]} 16... b5 {[%clk
0:02:36.5]} 17. Bxh7+ {[%clk 0:02:30.2]} 17... Kh8 {[%clk 0:02:35.1]} 18. Bd3
{[%clk 0:02:30.2]} 18... Nc4 {[%clk 0:02:34.1]} 19. Qe2 {[%clk 0:02:29.1]} 19...
g6 {[%clk 0:02:30.7]} 20. Rfc1 {[%clk 0:01:26.2]} 20... Kg7 {[%clk 0:02:28.9]}
21. Qf3 {[%clk 0:01:23.8]} 21... Rh8 {[%clk 0:02:25.9]} 22. Qg3 {[%clk
0:01:15.6]} 22... Qe7 {[%clk 0:01:38.5]} 23. b3 {[%clk 0:01:11.6]} 23... Nd6
{[%clk 0:00:39.6]} 24. Rc7 {[%clk 0:01:09.4]} 24... Rhc8 {[%clk 0:00:39.6]} 25.
Rxc8 {[%clk 0:00:46.6]} 25... Rxc8 {[%clk 0:00:37.8]} 26. Rxc8 {[%clk
0:00:43.6]} 26... Nxc8 {[%clk 0:00:33.8]} 27. b4 {[%clk 0:00:43.5]} 27... Nd6
{[%clk 0:00:31.6]} 28. h4 {[%clk 0:00:41]} 28... Ne4 {[%clk 0:00:29.5]} 29. Bxe4
{[%clk 0:00:39.6]} 29... dxe4 {[%clk 0:00:29.9]} 30. d5 {[%clk 0:00:39.4]} 30...
Bf5 {[%clk 0:00:28.7]} 31. d6 {[%clk 0:00:38.8]} 31... Qd7 {[%clk 0:00:24.8]}
32. Nd5 {[%clk 0:00:37]} 32... Qe6 {[%clk 0:00:19.7]} 33. Ne7 {[%clk 0:00:36]}
33... Kf8 {[%clk 0:00:17]} 34. Qf4 {[%clk 0:00:33.6]} 34... Ke8 {[%clk
0:00:12.3]} 35. h5 {[%clk 0:00:32.9]} 35... Kd7 {[%clk 0:00:10.6]} 36. h6 {[%clk
0:00:32.6]} 36... Qb3 {[%clk 0:00:04.6]} 37. h7 {[%clk 0:00:31.3]} 37... Qd1+
{[%clk 0:00:04.6]} 38. Kh2 {[%clk 0:00:24]} 38... Qh5+ {[%clk 0:00:05.2]} 39.
Kg3 {[%clk 0:00:24]} 39... Qxh7 {[%clk 0:00:05.2]} 40. Nxf5 {[%clk 0:00:15.9]}
40... gxf5 {[%clk 0:00:05.4]} 41. f3 {[%clk 0:00:14.2]} 41... Qg6+ {[%clk
0:00:05.7]} 42. Kf2 {[%clk 0:00:14]} 42... exf3 {[%clk 0:00:04.5]} 43. gxf3
{[%clk 0:00:14.5]} 43... Qg5 {[%clk 0:00:04.9]} 44. Qd4 {[%clk 0:00:12.7]} 44...
f4 {[%clk 0:00:04.3]} 45. exf4 {[%clk 0:00:11.7]} 45... Qh4+ {[%clk 0:00:04.7]}
46. Ke3 {[%clk 0:00:12]} 46... Qe1+ {[%clk 0:00:05]} 47. Kd3 {[%clk 0:00:12.5]}
47... Qd1+ {[%clk 0:00:05.3]} 48. Ke4 {[%clk 0:00:12.9]} 48... Qxd4+ {[%clk
0:00:05.2]} 49. Kxd4 {[%clk 0:00:12.8]} 49... Kxd6 {[%clk 0:00:06.1]} 50. f5
{[%clk 0:00:12.1]} 50... Kc6 {[%clk 0:00:06.6]} 1/2-1/2

[Event "*** SCC Grand Prix: Titled Tuesday Blitz"]
[Site "Chess.com"]
[Date "2020.06.02"]
[Round "4"]
[White "mamonika"]
[Black "secretsuperstar7"]
[Result "0-1"]
[WhiteElo "1962"]
[BlackElo "2214"]
[TimeControl "180+1"]
[EndTime "10:40:19 PDT"]
[Termination "secretsuperstar7 won by resignation"]

1. e4 {[%clk 0:03:00.9]} 1... c5 {[%clk 0:02:58.8]} 2. Nf3 {[%clk 0:03:00.7]}
2... d6 {[%clk 0:02:56.9]} 3. d4 {[%clk 0:03:00.9]} 3... cxd4 {[%clk 0:02:57]}
4. Nxd4 {[%clk 0:03:01.8]} 4... Nf6 {[%clk 0:02:57]} 5. Nc3 {[%clk 0:03:02]}
5... Nc6 {[%clk 0:02:57.1]} 6. Be2 {[%clk 0:03:02]} 6... e6 {[%clk 0:02:50.2]}
7. O-O {[%clk 0:03:01.7]} 7... Be7 {[%clk 0:02:50.4]} 8. Be3 {[%clk 0:02:57.5]}
8... O-O {[%clk 0:02:48.8]} 9. f4 {[%clk 0:02:57.6]} 9... a6 {[%clk 0:02:40.3]}
10. Qe1 {[%clk 0:02:53.9]} 10... e5 {[%clk 0:02:32.9]} 11. Nxc6 {[%clk
0:02:44.3]} 11... bxc6 {[%clk 0:02:32.2]} 12. fxe5 {[%clk 0:02:44.5]} 12... dxe5
{[%clk 0:02:31.8]} 13. Rd1 {[%clk 0:02:44.3]} 13... Qa5 {[%clk 0:02:29.6]} 14.
Bg5 {[%clk 0:02:24.5]} 14... Rb8 {[%clk 0:02:16.5]} 15. b3 {[%clk 0:02:17]}
15... Be6 {[%clk 0:01:48.4]} 16. Qg3 {[%clk 0:02:06.3]} 16... Kh8 {[%clk
0:01:13.8]} 17. Rd3 {[%clk 0:01:46.6]} 17... Rfd8 {[%clk 0:01:07.4]} 18. Rdf3
{[%clk 0:01:27.9]} 18... Nh5 {[%clk 0:00:51]} 19. Qh4 {[%clk 0:01:22.6]} 19...
Bxg5 {[%clk 0:00:50.3]} 20. Qxg5 {[%clk 0:01:22.8]} 20... Nf4 {[%clk 0:00:46.9]}
21. Rxf4 {[%clk 0:01:18.3]} 21... Qxc3 {[%clk 0:00:39.6]} 22. Rh4 {[%clk
0:01:01.8]} 22... Qd2 {[%clk 0:00:27.5]} 23. Qh5 {[%clk 0:00:55.8]} 23... h6
{[%clk 0:00:22.5]} 24. Bd3 {[%clk 0:00:54]} 24... Qc3 {[%clk 0:00:14.8]} 25. Qf3
{[%clk 0:00:25.1]} 25... c5 {[%clk 0:00:12.5]} 26. a4 {[%clk 0:00:19.7]} 26...
c4 {[%clk 0:00:09.7]} 27. bxc4 {[%clk 0:00:09.3]} 27... Rbc8 {[%clk 0:00:06.8]}
28. Qe3 {[%clk 0:00:05.5]} 28... Qd4 {[%clk 0:00:03.5]} 29. Qxd4 {[%clk
0:00:05.3]} 29... Rxd4 {[%clk 0:00:03.5]} 30. c5 {[%clk 0:00:04.4]} 30... Kg8
{[%clk 0:00:03.7]} 31. Bxa6 {[%clk 0:00:04.3]} 31... Rxc5 {[%clk 0:00:04]} 32.
Bd3 {[%clk 0:00:03.5]} 32... Rxa4 {[%clk 0:00:03.8]} 33. h3 {[%clk 0:00:03.2]}
33... Rc3 {[%clk 0:00:03.8]} 34. Rh5 {[%clk 0:00:02.1]} 34... Ra2 {[%clk
0:00:04]} 35. Rxe5 {[%clk 0:00:01.7]} 35... Rb2 {[%clk 0:00:04]} 36. Rb5 {[%clk
0:00:02.2]} 36... Rxb5 {[%clk 0:00:02]} 37. Bxb5 {[%clk 0:00:02.3]} 37... Rxc2
{[%clk 0:00:02.7]} 38. Re1 {[%clk 0:00:02.3]} 38... Rb2 {[%clk 0:00:02.8]} 39.
Kh2 {[%clk 0:00:03.2]} 39... Kf8 {[%clk 0:00:02.9]} 40. e5 {[%clk 0:00:03.7]}
40... Rxb5 {[%clk 0:00:03]} 41. Re2 {[%clk 0:00:03.7]} 41... Rd5 {[%clk
0:00:03.9]} 42. Re3 {[%clk 0:00:04]} 42... Ke7 {[%clk 0:00:04.4]} 43. Kg3 {[%clk
0:00:04.5]} 43... Kd7 {[%clk 0:00:04.9]} 44. Kf2 {[%clk 0:00:05]} 44... Kc6
{[%clk 0:00:05.5]} 45. Ke2 {[%clk 0:00:05.3]} 45... Kc5 {[%clk 0:00:06.1]} 46.
Rc3+ {[%clk 0:00:05.7]} 46... Kd4 {[%clk 0:00:06.2]} 47. Re3 {[%clk 0:00:06.2]}
47... Rxe5 {[%clk 0:00:05.6]} 48. Re4+ {[%clk 0:00:05.7]} 48... Rxe4+ {[%clk
0:00:05.3]} 0-1

[Event "*** SCC Grand Prix: Titled Tuesday Blitz"]
[Site "Chess.com"]
[Date "2020.06.02"]
[Round "4"]
[White "bait_or_mate"]
[Black "Berant"]
[Result "1-0"]
[WhiteElo "2546"]
[BlackElo "2309"]
[TimeControl "180+1"]
[EndTime "10:40:20 PDT"]
[Termination "bait_or_mate won on time"]

1. d4 {[%clk 0:03:00.9]} 1... Nf6 {[%clk 0:02:55.1]} 2. c4 {[%clk 0:03:01]} 2...
e6 {[%clk 0:02:55.2]} 3. Nf3 {[%clk 0:03:00.6]} 3... d5 {[%clk 0:02:54.5]} 4. g3
{[%clk 0:03:00.4]} 4... Bb4+ {[%clk 0:02:52.5]} 5. Nbd2 {[%clk 0:02:59.9]} 5...
O-O {[%clk 0:02:45.1]} 6. Bg2 {[%clk 0:02:59.9]} 6... c6 {[%clk 0:02:39.6]} 7.
O-O {[%clk 0:02:59.9]} 7... Nbd7 {[%clk 0:02:38.3]} 8. Qc2 {[%clk 0:02:59.4]}
8... Re8 {[%clk 0:02:32.8]} 9. Rd1 {[%clk 0:02:52.9]} 9... Qc7 {[%clk
0:02:28.5]} 10. b3 {[%clk 0:02:52.1]} 10... dxc4 {[%clk 0:02:26.4]} 11. Nxc4
{[%clk 0:02:51]} 11... Be7 {[%clk 0:02:18]} 12. Bf4 {[%clk 0:02:46.5]} 12... Qd8
{[%clk 0:02:13.1]} 13. e4 {[%clk 0:02:33.3]} 13... Nh5 {[%clk 0:01:58.6]} 14.
Be3 {[%clk 0:02:28.4]} 14... Qc7 {[%clk 0:01:22.7]} 15. Rac1 {[%clk 0:02:27.3]}
15... Nb6 {[%clk 0:01:15.8]} 16. Nce5 {[%clk 0:02:20.1]} 16... Nf6 {[%clk
0:01:06.8]} 17. Ng5 {[%clk 0:02:14.1]} 17... Rf8 {[%clk 0:00:54.1]} 18. h3
{[%clk 0:01:28.5]} 18... h6 {[%clk 0:00:51.6]} 19. Ngf3 {[%clk 0:01:28.3]} 19...
Ba3 {[%clk 0:00:50.7]} 20. Rb1 {[%clk 0:01:27.4]} 20... Qe7 {[%clk 0:00:50.4]}
21. Nd2 {[%clk 0:01:19.3]} 21... Bd7 {[%clk 0:00:47.8]} 22. Ndc4 {[%clk
0:01:18.2]} 22... Rfd8 {[%clk 0:00:36.6]} 23. Nxa3 {[%clk 0:01:12.1]} 23... Qxa3
{[%clk 0:00:36.6]} 24. g4 {[%clk 0:00:53.9]} 24... Rac8 {[%clk 0:00:30.2]} 25.
Nc4 {[%clk 0:00:53.6]} 25... Qe7 {[%clk 0:00:26.1]} 26. Bf4 {[%clk 0:00:52.1]}
26... Nxc4 {[%clk 0:00:23.3]} 27. bxc4 {[%clk 0:00:53]} 27... b6 {[%clk
0:00:21.7]} 28. e5 {[%clk 0:00:45.2]} 28... Ne8 {[%clk 0:00:20.4]} 29. Be3
{[%clk 0:00:44.9]} 29... Nc7 {[%clk 0:00:20.2]} 30. f4 {[%clk 0:00:44.3]} 30...
Na6 {[%clk 0:00:19.7]} 31. Qa4 {[%clk 0:00:40.7]} 31... Nc7 {[%clk 0:00:18.6]}
32. Qxa7 {[%clk 0:00:38.9]} 32... Ne8 {[%clk 0:00:16.8]} 33. Qxb6 {[%clk
0:00:38]} 33... Ra8 {[%clk 0:00:16.8]} 34. Qb2 {[%clk 0:00:36.2]} 34... Ra3
{[%clk 0:00:16]} 35. Qf2 {[%clk 0:00:32.4]} 35... Rda8 {[%clk 0:00:16.1]} 36.
Rb2 {[%clk 0:00:31.7]} 36... Nc7 {[%clk 0:00:12.3]} 37. d5 {[%clk 0:00:26.7]}
37... cxd5 {[%clk 0:00:12.2]} 38. Bc5 {[%clk 0:00:26.4]} 38... Qe8 {[%clk
0:00:08.6]} 39. Bxa3 {[%clk 0:00:26.7]} 39... Rxa3 {[%clk 0:00:09.1]} 40. cxd5
{[%clk 0:00:25.1]} 40... exd5 {[%clk 0:00:09.4]} 41. Qc5 {[%clk 0:00:24.3]}
41... Ne6 {[%clk 0:00:08.3]} 42. Qxa3 {[%clk 0:00:24]} 42... Nxf4 {[%clk
0:00:08.8]} 43. Qe3 {[%clk 0:00:23]} 43... g5 {[%clk 0:00:07.9]} 44. Bxd5 {[%clk
0:00:20.1]} 44... Ba4 {[%clk 0:00:07.7]} 45. Bb3 {[%clk 0:00:19.8]} 45... Bc6
{[%clk 0:00:05.9]} 46. Rbd2 {[%clk 0:00:18.9]} 46... Qe7 {[%clk 0:00:05.2]} 47.
Rd8+ {[%clk 0:00:18.7]} 47... Kg7 {[%clk 0:00:04.3]} 48. R8d4 {[%clk 0:00:17.2]}
48... Qa3 {[%clk 0:00:03.4]} 49. Rxf4 {[%clk 0:00:16.7]} 49... gxf4 {[%clk
0:00:03.8]} 50. Qxf4 {[%clk 0:00:17.6]} 50... Qb2 {[%clk 0:00:04.4]} 51. Qf6+
{[%clk 0:00:17.4]} 51... Kg8 {[%clk 0:00:02.3]} 52. Rd8+ {[%clk 0:00:16.6]} 1-0

[Event "*** SCC Grand Prix: Titled Tuesday Blitz"]
[Site "Chess.com"]
[Date "2020.06.02"]
[Round "4"]
[White "PlayChessSimple"]
[Black "Ave_Mariia"]
[Result "0-1"]
[WhiteElo "2512"]
[BlackElo "2307"]
[TimeControl "180+1"]
[EndTime "10:40:20 PDT"]
[Termination "Ave_Mariia won on time"]

1. e4 {[%clk 0:03:00.9]} 1... c5 {[%clk 0:02:59.9]} 2. Nf3 {[%clk 0:03:00.9]}
2... d6 {[%clk 0:03:00.2]} 3. c3 {[%clk 0:03:01.2]} 3... Nf6 {[%clk 0:02:59.5]}
4. h3 {[%clk 0:03:01.8]} 4... Nbd7 {[%clk 0:02:58.3]} 5. Bd3 {[%clk 0:03:02]}
5... b6 {[%clk 0:02:57.4]} 6. Bc2 {[%clk 0:03:00]} 6... Bb7 {[%clk 0:02:57]} 7.
Qe2 {[%clk 0:02:58.3]} 7... Qc7 {[%clk 0:02:54]} 8. O-O {[%clk 0:02:56.1]} 8...
Rc8 {[%clk 0:02:53]} 9. Na3 {[%clk 0:02:52.9]} 9... e6 {[%clk 0:02:51.3]} 10. d3
{[%clk 0:02:48.6]} 10... Be7 {[%clk 0:02:46.5]} 11. Bf4 {[%clk 0:02:47.4]} 11...
a6 {[%clk 0:02:45.4]} 12. Rac1 {[%clk 0:02:39.6]} 12... O-O {[%clk 0:02:42.4]}
13. d4 {[%clk 0:02:35.9]} 13... e5 {[%clk 0:02:35.3]} 14. Bh2 {[%clk 0:02:31.3]}
14... Rfe8 {[%clk 0:02:31.3]} 15. dxe5 {[%clk 0:02:22.7]} 15... dxe5 {[%clk
0:02:31]} 16. Nc4 {[%clk 0:02:22.6]} 16... Bf8 {[%clk 0:02:30.4]} 17. a4 {[%clk
0:02:13.7]} 17... b5 {[%clk 0:01:44.6]} 18. axb5 {[%clk 0:02:13.1]} 18... axb5
{[%clk 0:01:45.5]} 19. Na3 {[%clk 0:02:13.7]} 19... c4 {[%clk 0:01:23.6]} 20.
Nd4 {[%clk 0:01:55.4]} 20... Qc5 {[%clk 0:01:12.7]} 21. Ndxb5 {[%clk 0:01:37.7]}
21... Ba6 {[%clk 0:00:54.8]} 22. b4 {[%clk 0:01:33.2]} 22... cxb3 {[%clk
0:00:54.7]} 23. Bxb3 {[%clk 0:01:32.8]} 23... Qxa3 {[%clk 0:00:54.9]} 24. Rb1
{[%clk 0:01:18.5]} 24... Bxb5 {[%clk 0:00:52.4]} 25. Qxb5 {[%clk 0:01:16.2]}
25... Rxc3 {[%clk 0:00:49]} 26. Rfd1 {[%clk 0:01:10.1]} 26... Rb8 {[%clk
0:00:44.9]} 27. Bxf7+ {[%clk 0:00:44.8]} 27... Kxf7 {[%clk 0:00:44.2]} 28. Rxd7+
{[%clk 0:00:44.9]} 28... Nxd7 {[%clk 0:00:43.9]} 29. Qxd7+ {[%clk 0:00:44.6]}
29... Qe7 {[%clk 0:00:29.3]} 30. Qf5+ {[%clk 0:00:31.9]} 30... Kg8 {[%clk
0:00:25.5]} 31. Rf1 {[%clk 0:00:30.9]} 31... g6 {[%clk 0:00:19.2]} 32. Qxe5
{[%clk 0:00:30.3]} 32... Qxe5 {[%clk 0:00:17.3]} 33. Bxe5 {[%clk 0:00:30.4]}
33... Rbb3 {[%clk 0:00:18.2]} 34. Bxc3 {[%clk 0:00:29.9]} 34... Rxc3 {[%clk
0:00:19.1]} 35. g3 {[%clk 0:00:26.8]} 35... Bc5 {[%clk 0:00:18.8]} 36. Kg2
{[%clk 0:00:26.7]} 36... Rc2 {[%clk 0:00:18.7]} 37. g4 {[%clk 0:00:19.6]} 37...
Kf7 {[%clk 0:00:17.5]} 38. Kg3 {[%clk 0:00:18.9]} 38... Re2 {[%clk 0:00:16.6]}
39. Rc1 {[%clk 0:00:11.3]} 39... Bxf2+ {[%clk 0:00:14.3]} 40. Kf3 {[%clk
0:00:11.6]} 40... Rb2 {[%clk 0:00:12.4]} 41. Rc7+ {[%clk 0:00:11.1]} 41... Kg8
{[%clk 0:00:11.9]} 42. g5 {[%clk 0:00:11.5]} 42... Bd4 {[%clk 0:00:11.5]} 43.
Rc8+ {[%clk 0:00:11.2]} 43... Kf7 {[%clk 0:00:09.2]} 44. Rc7+ {[%clk 0:00:11.6]}
44... Ke6 {[%clk 0:00:09.3]} 45. Rxh7 {[%clk 0:00:11.6]} 45... Rf2+ {[%clk
0:00:09.1]} 46. Kg3 {[%clk 0:00:10.7]} 46... Rf1 {[%clk 0:00:08.2]} 47. Rb7
{[%clk 0:00:05]} 47... Rg1+ {[%clk 0:00:08]} 48. Kh2 {[%clk 0:00:03.5]} 48...
Rxg5 {[%clk 0:00:07.5]} 0-1

[Event "*** SCC Grand Prix: Titled Tuesday Blitz"]
[Site "Chess.com"]
[Date "2020.06.02"]
[Round "4"]
[White "Pudor"]
[Black "Larina_Marija"]
[Result "1-0"]
[WhiteElo "2392"]
[BlackElo "2123"]
[TimeControl "180+1"]
[EndTime "10:40:20 PDT"]
[Termination "Pudor won on time"]

1. d4 {[%clk 0:03:00.9]} 1... f5 {[%clk 0:02:59.8]} 2. g3 {[%clk 0:03:00.2]}
2... Nf6 {[%clk 0:02:59.9]} 3. Bg2 {[%clk 0:03:00.1]} 3... g6 {[%clk 0:02:59.6]}
4. Nf3 {[%clk 0:02:59.4]} 4... Bg7 {[%clk 0:02:59.5]} 5. O-O {[%clk 0:02:59.8]}
5... O-O {[%clk 0:02:59.3]} 6. b3 {[%clk 0:02:59.9]} 6... d6 {[%clk 0:02:57.9]}
7. Bb2 {[%clk 0:03:00.3]} 7... c6 {[%clk 0:02:56.4]} 8. Nbd2 {[%clk 0:02:58.3]}
8... a5 {[%clk 0:02:55]} 9. Re1 {[%clk 0:02:57.9]} 9... a4 {[%clk 0:02:52.6]}
10. c4 {[%clk 0:02:51.1]} 10... a3 {[%clk 0:02:52]} 11. Bc3 {[%clk 0:02:49.8]}
11... Ne4 {[%clk 0:02:46]} 12. Qc2 {[%clk 0:02:45.6]} 12... Nxc3 {[%clk
0:02:45]} 13. Qxc3 {[%clk 0:02:46.5]} 13... f4 {[%clk 0:02:33.1]} 14. Rad1
{[%clk 0:02:31.4]} 14... Qa5 {[%clk 0:01:55.4]} 15. Qxa5 {[%clk 0:02:16.2]}
15... Rxa5 {[%clk 0:01:56.3]} 16. e3 {[%clk 0:02:16.1]} 16... fxg3 {[%clk
0:01:51.7]} 17. hxg3 {[%clk 0:02:11.3]} 17... Bg4 {[%clk 0:01:45.7]} 18. Rc1
{[%clk 0:02:07.5]} 18... e5 {[%clk 0:01:35.1]} 19. dxe5 {[%clk 0:02:05.4]} 19...
dxe5 {[%clk 0:01:34.3]} 20. Ng5 {[%clk 0:01:57.8]} 20... h6 {[%clk 0:01:28.9]}
21. Nge4 {[%clk 0:01:56.5]} 21... Na6 {[%clk 0:01:21.8]} 22. Nd6 {[%clk
0:01:49.3]} 22... Rb8 {[%clk 0:01:06.1]} 23. N2e4 {[%clk 0:01:47]} 23... Nb4
{[%clk 0:01:01.3]} 24. Nc3 {[%clk 0:01:40.8]} 24... Nd3 {[%clk 0:01:00.2]} 25.
Be4 {[%clk 0:01:34.7]} 25... Nxe1 {[%clk 0:00:52.7]} 26. Rxe1 {[%clk 0:01:35.6]}
26... Kh7 {[%clk 0:00:32.8]} 27. f3 {[%clk 0:01:29.9]} 27... Bd7 {[%clk
0:00:29.2]} 28. Bc2 {[%clk 0:01:27.5]} 28... Be8 {[%clk 0:00:23.9]} 29. Kf2
{[%clk 0:01:23.6]} 29... Ra7 {[%clk 0:00:22.4]} 30. Nce4 {[%clk 0:01:10.5]}
30... b6 {[%clk 0:00:19.1]} 31. g4 {[%clk 0:01:06.8]} 31... c5 {[%clk
0:00:14.4]} 32. g5 {[%clk 0:01:06.6]} 32... h5 {[%clk 0:00:13]} 33. Rh1 {[%clk
0:01:03.6]} 33... Rd7 {[%clk 0:00:06.1]} 34. Ke2 {[%clk 0:00:47.6]} 34... Kg8
{[%clk 0:00:06]} 35. Nb5 {[%clk 0:00:44.2]} 35... Rbd8 {[%clk 0:00:05.8]} 36.
Nxa3 {[%clk 0:00:39.4]} 36... Ra8 {[%clk 0:00:05.7]} 37. Nb5 {[%clk 0:00:37]}
37... Rxa2 {[%clk 0:00:06]} 38. Rc1 {[%clk 0:00:37.2]} 38... Rd8 {[%clk
0:00:04.8]} 39. Nbd6 {[%clk 0:00:36.6]} 39... Rb2 {[%clk 0:00:04.2]} 40. Kd3
{[%clk 0:00:33.6]} 40... Ra2 {[%clk 0:00:03.7]} 41. Kc3 {[%clk 0:00:33.4]} 41...
Ra7 {[%clk 0:00:03.1]} 42. Rd1 {[%clk 0:00:21.2]} 42... Rad7 {[%clk 0:00:01.8]}
43. Nxe8 {[%clk 0:00:16.5]} 1-0

[Event "*** SCC Grand Prix: Titled Tuesday Blitz"]
[Site "Chess.com"]
[Date "2020.06.02"]
[Round "4"]
[White "HouseOfDurin"]
[Black "JuliaEfremova"]
[Result "0-1"]
[WhiteElo "1990"]
[BlackElo "2222"]
[TimeControl "180+1"]
[EndTime "10:40:20 PDT"]
[Termination "JuliaEfremova won on time"]

1. d4 {[%clk 0:03:00.9]} 1... e5 {[%clk 0:02:59.2]} 2. dxe5 {[%clk 0:02:59.8]}
2... Nc6 {[%clk 0:02:59.6]} 3. Nf3 {[%clk 0:02:59.4]} 3... Qe7 {[%clk
0:02:59.8]} 4. g3 {[%clk 0:02:59.3]} 4... Nxe5 {[%clk 0:02:58.8]} 5. Nxe5 {[%clk
0:03:00.2]} 5... Qxe5 {[%clk 0:02:58.4]} 6. Bg2 {[%clk 0:03:00.8]} 6... Nf6
{[%clk 0:02:57.7]} 7. O-O {[%clk 0:03:00.6]} 7... d5 {[%clk 0:02:54.6]} 8. c4
{[%clk 0:02:53.4]} 8... dxc4 {[%clk 0:02:51]} 9. Qa4+ {[%clk 0:02:53.2]} 9... c6
{[%clk 0:02:49.8]} 10. Qxc4 {[%clk 0:02:52.5]} 10... Qc5 {[%clk 0:02:45.9]} 11.
Qb3 {[%clk 0:02:39.9]} 11... Be7 {[%clk 0:02:39.8]} 12. Be3 {[%clk 0:02:25]}
12... Qh5 {[%clk 0:02:29.1]} 13. Nc3 {[%clk 0:02:23]} 13... O-O {[%clk
0:02:27.5]} 14. h4 {[%clk 0:02:08.4]} 14... Ng4 {[%clk 0:02:14]} 15. Bd2 {[%clk
0:01:57.1]} 15... Bc5 {[%clk 0:02:06.2]} 16. Ne4 {[%clk 0:01:46.2]} 16... Bb6
{[%clk 0:02:03.6]} 17. Qf3 {[%clk 0:01:27.8]} 17... Qb5 {[%clk 0:01:57.6]} 18.
Bc3 {[%clk 0:01:03.3]} 18... Ne5 {[%clk 0:01:29.7]} 19. Qh5 {[%clk 0:00:50.9]}
19... Ng6 {[%clk 0:01:16.6]} 20. Qxb5 {[%clk 0:00:46.3]} 20... cxb5 {[%clk
0:01:15.9]} 21. Nd6 {[%clk 0:00:45.2]} 21... Bg4 {[%clk 0:01:11.2]} 22. e3
{[%clk 0:00:27.6]} 22... a6 {[%clk 0:01:02.5]} 23. Nxb7 {[%clk 0:00:27]} 23...
Ra7 {[%clk 0:01:01.2]} 24. Nd6 {[%clk 0:00:26.6]} 24... Rd7 {[%clk 0:01:00.4]}
25. Ne4 {[%clk 0:00:26.3]} 25... Rfd8 {[%clk 0:00:57.4]} 26. Rfe1 {[%clk
0:00:17.9]} 26... a5 {[%clk 0:00:55.8]} 27. Ng5 {[%clk 0:00:16.3]} 27... b4
{[%clk 0:00:54.2]} 28. Bd4 {[%clk 0:00:13.7]} 28... Bxd4 {[%clk 0:00:50.7]} 29.
exd4 {[%clk 0:00:14.6]} 29... Rxd4 {[%clk 0:00:50.4]} 30. Nf3 {[%clk 0:00:15.1]}
30... Bxf3 {[%clk 0:00:48.5]} 31. Bxf3 {[%clk 0:00:16]} 31... Rd2 {[%clk
0:00:48.8]} 32. Rad1 {[%clk 0:00:14.5]} 32... Nf8 {[%clk 0:00:43.6]} 33. Rxd2
{[%clk 0:00:13.7]} 33... Rxd2 {[%clk 0:00:44.5]} 34. Re2 {[%clk 0:00:13.4]}
34... Rd1+ {[%clk 0:00:44]} 35. Kg2 {[%clk 0:00:13]} 35... Rd6 {[%clk 0:00:43]}
36. a3 {[%clk 0:00:12.4]} 36... bxa3 {[%clk 0:00:42.8]} 37. bxa3 {[%clk
0:00:13.3]} 37... Rd3 {[%clk 0:00:42.6]} 38. Re7 {[%clk 0:00:10.3]} 38... Rxa3
{[%clk 0:00:41.7]} 39. Bd5 {[%clk 0:00:10.8]} 39... Ne6 {[%clk 0:00:41.1]} 40.
Bxe6 {[%clk 0:00:08.4]} 40... fxe6 {[%clk 0:00:42]} 41. Rxe6 {[%clk 0:00:08.7]}
41... Ra1 {[%clk 0:00:40.9]} 42. Ra6 {[%clk 0:00:07.7]} 42... a4 {[%clk
0:00:41.1]} 43. Ra7 {[%clk 0:00:08.3]} 43... a3 {[%clk 0:00:39.5]} 44. Kf3
{[%clk 0:00:08.3]} 44... a2 {[%clk 0:00:39.3]} 45. Kg4 {[%clk 0:00:08.2]} 45...
Kf8 {[%clk 0:00:36.7]} 46. f4 {[%clk 0:00:07.5]} 46... Ke8 {[%clk 0:00:36.6]}
47. h5 {[%clk 0:00:07.2]} 47... Kd8 {[%clk 0:00:36.5]} 48. Kf5 {[%clk
0:00:05.9]} 48... Kc8 {[%clk 0:00:35.6]} 49. g4 {[%clk 0:00:02.6]} 49... Kb8
{[%clk 0:00:35.4]} 50. Ra3 {[%clk 0:00:03]} 50... Kb7 {[%clk 0:00:34.4]} 51. g5
{[%clk 0:00:03.1]} 51... Kb6 {[%clk 0:00:34.5]} 52. h6 {[%clk 0:00:02.8]} 52...
gxh6 {[%clk 0:00:33.8]} 53. gxh6 {[%clk 0:00:02.7]} 53... Kc5 {[%clk 0:00:32.7]}
54. Kf6 {[%clk 0:00:02.3]} 54... Kb4 {[%clk 0:00:31.1]} 55. Ra7 {[%clk
0:00:01.6]} 55... Kb3 {[%clk 0:00:30.8]} 56. Kg7 {[%clk 0:00:01.4]} 56... Rg1+
{[%clk 0:00:27.9]} 0-1